{"text_format":"1","workbook":"xlsx","n_sheets":1,"sheets":["Inventario"],"not_rendered":{"charts":0,"images":0,"macros":0,"external_links":0,"defined_names":1,"comments":0,"pivot_tables":0},"unopened":[],"bounds":{"document_bytes":16777216,"sheet_cells":100000,"rows_first":2000,"rows_last":500,"rows_between":2000,"halvings":0,"cell_chars":16384,"cell_head_chars":4096},"cells_cut":0,"cells_raw":0,"read":"whole","date_system":"1900"}

{"sheet":"Inventario","index":0,"n_rows":39,"n_cols":14,"rows_kept":39,"cut":false,"hidden":false,"merged":[[6,8,6,11],[4,12,4,13],[4,10,4,11],[1,1,1,13],[3,1,3,9],[4,1,4,9]]}
[]
[null,"CONTROL DE INVENTARIO"]
[]
[null,"ARTICULO",null,null,null,null,null,null,null,null,"Nº DE ARTICULO",null,"Nº DE PAGINA"]
[]
[]
[null,"PEDIDO",null,null,null,"RECIBIDO",null,null,"VENDIDO"]
[null,"FECHA","Nº PEDIDO","PROOVEDOR","CANTIDAD","FECHA","CANTIDAD","PENDIENTE","FECHA ENTREGA","FECHA","PEDIDO","CANTIDAD","SALDO","COMENTARIO"]
[null,null,null,null,null,null,null,null,null,null,null,"SALDO AVANCE"]
[null,null,null,null,null,null,null,null,null,null,null,null,{"$f":"IF(OR(L10<>0,G10<>0),M9-L10+G10,\"\")","v":""}]
[null,null,null,null,null,null,null,null,null,null,null,null,{"$f":"IF(OR(L11<>0,G11<>0),M10-L11+G11,\"\")","v":""}]
[null,null,null,null,null,null,null,null,null,null,null,null,""]
[null,null,null,null,null,null,null,null,null,null,null,null,""]
[null,null,null,null,null,null,null,null,null,null,null,null,""]
[null,null,null,null,null,null,null,null,null,null,null,null,""]
[null,null,null,null,null,null,null,null,null,null,null,null,""]
[null,null,null,null,null,null,null,null,null,null,null,null,""]
[null,null,null,null,null,null,null,null,null,null,null,null,""]
[null,null,null,null,null,null,null,null,null,null,null,null,""]
[null,null,null,null,null,null,null,null,null,null,null,null,""]
[null,null,null,null,null,null,null,null,null,null,null,null,""]
[null,null,null,null,null,null,null,null,null,null,null,null,""]
[null,null,null,null,null,null,null,null,null,null,null,null,""]
[]
[]
[]
[]
[]
[null,null,null,null,null,null,null,null,null,null,null,null,{"$f":"IF(OR(L29<>0,G29<>0),M23-L29+G29,\"\")","v":""}]
[null,null,null,null,null,null,null,null,null,null,null,null,""]
[null,null,null,null,null,null,null,null,null,null,null,null,""]
[null,null,null,null,null,null,null,null,null,null,null,null,""]
[null,null,null,null,null,null,null,null,null,null,null,null,""]
[null,null,null,null,null,null,null,null,null,null,null,null,""]
[null,null,null,null,null,null,null,null,null,null,null,null,""]
[null,null,null,null,null,null,null,null,null,null,null,null,""]
[null,null,null,null,null,null,null,null,null,null,null,null,""]
[null,null,null,null,null,null,null,null,null,null,null,null,""]
[null,null,null,null,null,null,null,null,null,null,null,{"$f":"\"AVANZA A \"&IF(M5,+\"HOJA  \"&FIXED(M5+1,0,TRUE)&\"  \",\"PROXIMA HOJA  \")","v":"AVANZA A PROXIMA HOJA  "},{"$f":"M38","v":""}]